fUSD/lending_fUSD_20250524
["ID","MTS","AMOUNT","RATE_DAILY","PERIOD"]
[362162626,1748044815472,264.2300927,0.0004253,120]
[362162627,1748044819656,420.0,0.0004253,120]
[362162629,1748044829507,420.0,0.0004253,120]
[362162631,1748044885160,457.21,0.00025644,120]
[362162637,1748045017072,1000.0,0.00042534,60]
[362162640,1748045108388,100000.0,0.00042534,60]
[362162641,1748045122403,393.06756223,0.00042534,120]
[362162643,1748045140587,49000.0,0.00042534,60]
[362162644,1748045149125,-280.26716551,0.00019999,2]
[362162645,1748045149149,-255.12,0.00019999,2]
[362162646,1748045149171,-250.0,0.00020061,2]
[362162647,1748045149194,-200.0,0.00020061,2]
[362162648,1748045149215,-182.36,0.00020438,2]
[362162649,1748045149238,-38.18383987,0.00021369,2]
[362162651,1748045198092,-216.93616013,0.00021369,2]
[362162652,1748045198114,-6.64210697,0.0002189,2]
[362162655,1748045225094,-243.35789303,0.0002189,2]
[362162656,1748045225117,-250.0,0.0002189,2]
[362162657,1748045225140,-200.0,0.0002189,2]
[362162658,1748045225166,-200.0,0.0002189,2]
[362162659,1748045225191,-139.78645123,0.00022064,2]
[362162660,1748045234095,-200.0,0.00022216,2]
[362162661,1748045234118,-157.43,0.00022505,2]
[362162662,1748045234139,-1731.15,0.00022736,2]
[362162663,1748045234160,-200.0,0.00022736,2]
[362162664,1748045234182,-1200.0,0.00022738,2]
[362162665,1748045234203,-255.12,0.00022739,2]
[362162666,1748045234224,-247.92,0.0002275,2]
[362162667,1748045234245,-300.0,0.00022775,2]
[362162668,1748045234266,-13484.2816829,0.00022776,2]
[362162669,1748045238094,-2083.7183171,0.00022776,2]
[362162670,1748045238120,-1000.0,0.0002278,2]
[362162671,1748045238145,-155.77,0.00022788,2]
[362162672,1748045238170,-457.21,0.00022795,2]
[362162673,1748045238194,-300.0,0.00022802,2]
[362162674,1748045238222,-187.34,0.00022803,2]
[362162675,1748045238254,-312.36622615,0.000229,8]
[362162676,1748045239125,-303.76791328,0.000229,8]
[362162677,1748045239152,-462.29377722,0.00022904,2]
[362162680,1748045252124,-487.51003358,0.00022904,2]
[362162681,1748045300557,420.0,0.00042534,120]
[362162682,1748045303996,479.18,0.00042534,120]
[362162683,1748045317468,420.0,0.00042534,120]
[362162684,1748045319497,420.0,0.00042534,120]
[362162685,1748045348908,420.0,0.00042534,120]
[362162686,1748045349279,217.3704077,0.00042534,120]
[362162687,1748045353097,-212.0,0.00021064,2]
[362162688,1748045353125,-1275.9161892,0.00022904,2]
[362162689,1748045353150,-150.0,0.00022929,7]
[362162690,1748045353172,-86.4220348,0.00022947,2]
[362162691,1748045361933,420.0,0.00042534,120]
[362162692,1748045364111,420.0,0.00042534,120]
[362162693,1748045367369,418.8835825,0.00042534,120]
[362162694,1748045369514,420.0,0.00042534,120]
[362162695,1748045374092,-2664.5779652,0.00022947,2]
[362162696,1748045374117,-307.2601768,0.00022961,2]
[362162698,1748045375553,50000.0,0.00042534,60]
[362162699,1748045375973,157.42,0.00013699,2]
[362162701,1748045377344,47000.0,0.00042534,120]
[362162702,1748045425452,1500.0,0.00025,90]
[362162705,1748045431786,-652.8298232,0.00022961,2]
[362162706,1748045431800,-162.6,0.00023087,2]
[362162707,1748045431811,-162.6,0.00023093,2]
[362162708,1748045431820,-162.6,0.00023099,2]
[362162709,1748045431830,-162.6,0.00023105,2]
[362162710,1748045431840,-162.6,0.00023111,2]
[362162711,1748045431851,-162.6,0.00023117,2]
[362162712,1748045431860,-162.6,0.00023123,2]
[362162713,1748045431873,-162.6,0.00023129,2]
[362162714,1748045431883,-162.6,0.00023135,2]
[362162715,1748045431893,-456.95,0.0002314,2]
[362162716,1748045431903,-162.6,0.00023142,2]
[362162717,1748045431913,-162.6,0.00023148,2]
[362162718,1748045431923,-162.6,0.00023154,2]
[362162719,1748045431933,-162.6,0.0002316,2]
[362162720,1748045431943,-162.6,0.00023166,2]
[362162721,1748045431952,-162.6,0.00023172,2]
[362162722,1748045431963,-162.6,0.00023178,2]
[362162723,1748045431972,-157.42,0.00023182,2]
[362162724,1748045431982,-162.6,0.00023184,2]
[362162725,1748045431991,-1600.0,0.0002319,2]
[362162726,1748045432002,-162.6,0.0002319,2]
[362162727,1748045432012,-162.6,0.00023196,2]
[362162728,1748045432022,-1200.0,0.00023199,2]
[362162729,1748045432032,-2418.06023736,0.000232,2]
[362162730,1748045432042,-162.6,0.00023202,2]
[362162731,1748045432052,-152.69,0.00023277,2]
[362162732,1748045432061,-43814.48283547,0.00023345,2]
[362162733,1748045432086,-1000.0,0.00023345,2]
[362162734,1748045432098,-305.32,0.00023345,2]
[362162735,1748045432110,-1685.082279,0.00023345,2]
[362162736,1748045432131,-337.4339483,0.00023345,2]
[362162737,1748045432143,-344.60495215,0.00023345,2]
[362162738,1748045432155,-1150.17360071,0.00023345,2]
[362162739,1748045432191,-8997.88238437,0.00023345,2]
[362162740,1748045432201,-431.35315736,0.00023373,2]
[362162742,1748045432211,-500.0,0.00023373,2]
[362162744,1748045432222,-500.0,0.00023373,2]
[362162746,1748045432232,-384.56695327,0.00023373,2]
[362163301,1748045438186,1500.0,0.00027397,120]
[362163311,1748045438280,-300.0,0.000232,2]
[362163313,1748045438290,-115.43304673,0.00023373,2]
[362163315,1748045438299,-500.0,0.00023373,2]
[362163317,1748045438309,-494.100005,0.00023389,2]
[362163319,1748045438319,-2879.26694827,0.0002339,2]
[362163385,1748045438952,-575.79183066,0.0002339,2]
[362163387,1748045438966,-20444.94122107,0.0002339,2]
[362163389,1748045438975,-363.23,0.00023402,2]
[362163391,1748045438986,-1047.82,0.00023415,2]
[362163393,1748045438996,-159.51,0.00023431,2]
[362163395,1748045439005,-2394.55165778,0.00023479,2]
[362163399,1748045439037,-54.1677814,0.00023479,2]
[362163402,1748045439053,-613.47056082,0.00023479,2]
[362163404,1748045439063,-9201.71,0.00023479,2]
[362163406,1748045439072,-1500.0,0.00023495,2]
[362163408,1748045439082,-600.52,0.00023567,2]
[362163410,1748045439092,-165.12,0.00023647,2]
[362163412,1748045439101,-1532.84,0.00023711,2]
[362163414,1748045439110,-256.43,0.00023836,2]
[362163416,1748045439121,-1000.0,0.00023921,2]
[362163417,1748045439130,-1000.0,0.00023921,2]
[362163419,1748045439142,-1000.0,0.00023921,2]
[362163421,1748045439151,-1204.0,0.00023979,2]
[362163423,1748045439162,-500.0,0.00024025,2]
[362163425,1748045439174,-155.77,0.00024054,2]
[362163427,1748045439183,-300.0,0.00024081,2]
[362163430,1748045439194,-250.0,0.00024089,2]
[362163431,1748045439204,-150.0,0.00024146,2]
[362163433,1748045439214,-3042.45,0.00024148,2]
[362163436,1748045439223,-152.69,0.0002415,2]
[362163438,1748045439233,-185.91,0.00024173,2]
[362163439,1748045439243,-361.98685205,0.00024195,2]
[362163442,1748045439253,-500.0,0.00024195,2]
[362163443,1748045439262,-150.0,0.0002423,2]
[362163445,1748045439272,-200.0,0.00024231,2]
[362163447,1748045439282,-1068.941,0.00024248,6]
[362163449,1748045439291,-167.114,0.00024248,6]
[362163451,1748045439301,-150.0,0.00024272,2]
[362163453,1748045439310,-751.607064,0.00024294,2]
[362163455,1748045439320,-150.0,0.00024305,2]
[362163457,1748045439330,-212.0,0.00024309,6]
[362163459,1748045439340,-150.0,0.00024323,2]
[362163462,1748045439350,-150.0,0.00024349,2]
[362163463,1748045439359,-150.0,0.00024353,2]
[362163465,1748045439370,-150.0,0.00024353,2]
[362163468,1748045439380,-150.0,0.00024353,2]
[362163469,1748045439389,-150.0,0.00024361,2]
[362163472,1748045439399,-150.0,0.0002437,2]
[362163474,1748045439409,-150.0,0.00024399,2]
[362163475,1748045439419,-150.0,0.00024404,2]
[362163478,1748045439429,-150.0,0.00024407,2]
[362163480,1748045439438,-150.0,0.00024414,2]
[362163481,1748045439448,-150.0,0.00024422,2]
[362163483,1748045439457,-150.0,0.00024427,2]
[362163514,1748045439737,-150.0,0.00024437,2]
[362163516,1748045439748,-150.0,0.00024446,2]
[362163518,1748045439758,-150.0,0.00024459,2]
[362163520,1748045439767,-1500.0,0.00024468,2]
[362163522,1748045439777,-1500.0,0.00024468,2]
[362163524,1748045439787,-557.93876485,0.00024468,2]
[362163526,1748045439796,-150.0,0.00024469,2]
[362163528,1748045439805,-150.0,0.00024474,2]
[362163530,1748045439815,-150.0,0.00024478,2]
[362163532,1748045439825,-150.0,0.00024481,2]
[362163534,1748045439834,-150.0,0.00024483,2]
[362163536,1748045439844,-150.0,0.00024493,2]
[362163538,1748045439853,-150.0,0.00024501,2]
[362163540,1748045439863,-150.0,0.00024502,2]
[362163542,1748045439874,-150.0,0.00024509,2]
[362163545,1748045439883,-150.0,0.00024509,2]
[362163547,1748045439899,-150.0,0.00024518,2]
[362163549,1748045439917,-150.0,0.00024522,2]
[362163551,1748045439930,-150.0,0.00024522,2]
[362163553,1748045439943,-150.0,0.00024524,2]
[362163555,1748045439954,-150.0,0.00024534,2]
[362163557,1748045439964,-150.0,0.00024536,2]
[362163559,1748045439974,-150.0,0.00024539,2]
[362163562,1748045439984,-150.0,0.00024542,2]
[362163563,1748045439994,-150.0,0.00024547,2]
[362163564,1748045440004,-150.0,0.00024554,2]
[362163565,1748045440013,-150.0,0.00024563,2]
[362163566,1748045440025,-150.0,0.00024568,2]
[362163567,1748045440035,-150.0,0.00024569,2]
[362163568,1748045440045,-1000.0,0.00024573,2]
[362163569,1748045440055,-150.0,0.00024578,2]
[362163570,1748045440064,-150.0,0.00024597,2]
[362163571,1748045440074,-150.0,0.00024609,2]
[362163573,1748045440084,-1000.0,0.0002462,2]
[362163575,1748045440093,-1000.0,0.00024626,2]
[362163576,1748045440102,-743.76893644,0.00024638,2]
[362163579,1748045440112,-1000.0,0.00024658,2]
[362163580,1748045440126,-293.02355234,0.000247,2]
[362163582,1748045440135,-150.0,0.00024708,2]
[362163585,1748045440145,-150.0,0.00024715,2]
[362163587,1748045440154,-1000.0,0.00024743,2]
[362163589,1748045440164,-226.57149104,0.00024773,2]
[362163591,1748045440174,-1015.71514633,0.00024798,10]
[362163593,1748045440184,-1072.30619193,0.00024798,10]
[362163594,1748045440193,-1072.30619193,0.00024798,10]
[362163596,1748045440202,-223.23,0.00024798,2]
[362163597,1748045440212,-530.76,0.0002489,3]
[362163599,1748045440222,-151.0,0.000249,7]
[362163601,1748045440231,-151.0,0.000249,7]
[362163603,1748045440240,-151.0,0.000249,7]
[362163605,1748045440250,-217.044994,0.000249,7]
[362163606,1748045440259,-150.0,0.000249,7]
[362163608,1748045440269,-595.59633485,0.000249,12]
[362163610,1748045440278,-155.63695396,0.00024927,7]
[362163612,1748045440288,-283.28156763,0.00024973,2]
[362163615,1748045440302,-2000.0,0.00025016,2]
[362163616,1748045440311,-2000.0,0.00025016,2]
[362163618,1748045440320,-152.69,0.00025023,2]
[362163620,1748045440330,-692.33143215,0.00025096,2]
[362163622,1748045440339,-1500.0,0.00025121,2]
[362163624,1748045440349,-420.0,0.0002518,2]
[362163626,1748045440359,-1500.0,0.00025291,2]
[362163628,1748045440368,-1680.0,0.00025295,2]
[362163630,1748045440379,-155.77,0.0002532,2]
[362163632,1748045440388,-300.0,0.00025451,2]
[362163634,1748045440398,-595.5963346,0.00025521,13]
[362163636,1748045440407,-2500.0,0.00025564,2]
[362163638,1748045440417,-2500.0,0.00025564,2]
[362163640,1748045440426,-1000.0,0.00025628,2]
[362163642,1748045440436,-2000.0,0.00025669,2]
[362163644,1748045440445,-595.55196655,0.00025722,8]
[362163645,1748045440455,-198.0,0.00025822,2]
[362163647,1748045440464,-2000.0,0.00025839,2]
[362163649,1748045440474,-152.69,0.00025896,2]
[362163651,1748045440484,-1532.84,0.00025974,2]
[362163653,1748045440493,-1633.39471151,0.00026112,2]
[362163655,1748045440503,-1394.83810046,0.00026112,2]
[362163657,1748045440517,-396.43681476,0.00026112,2]
[362163660,1748045440529,-208.72508478,0.00026112,2]
[362163661,1748045440538,-965.24981559,0.00026116,2]
[362163667,1748045440582,-2251.12138805,0.00026116,2]
[362163669,1748045440597,-3621.62879636,0.00026116,2]
[362163671,1748045440606,-255.025,0.00026116,2]
[362163673,1748045440616,-4052.0,0.00026116,2]
[362163675,1748045440626,-843.0,0.00026116,2]
[362163677,1748045440636,-881.0,0.00026116,2]
[362163679,1748045440646,-595.5963346,0.00026141,14]
[362163681,1748045440656,-514.0,0.00026164,2]
[362163683,1748045440665,-223.23,0.00026168,2]
[362163685,1748045440675,-2002.63310205,0.00026217,2]
[362163687,1748045440684,-243.0,0.00026301,2]
[362163689,1748045440694,-217.965,0.00026301,2]
[362163691,1748045440703,-509.643,0.00026301,2]
[362163693,1748045440713,-936.0,0.00026301,2]
[362163695,1748045440722,-799.0,0.00026301,2]
[362163697,1748045440732,-585.0,0.00026301,2]
[362163699,1748045440741,-921.0,0.00026301,2]
[362163700,1748045440751,-554.0,0.00026301,2]
[362163702,1748045440761,-1461.0,0.00026301,2]
[362163704,1748045440770,-1151.0,0.00026301,2]
[362163706,1748045440779,-1077.0,0.00026417,2]
[362163708,1748045440790,-155.77,0.00026586,2]
[362163710,1748045440800,-595.5963346,0.00026762,15]
[362163712,1748045440809,-152.69,0.00026769,2]
[362163714,1748045440819,-1021.0,0.000271,2]
[362163716,1748045440828,-293.02355231,0.00027217,2]
[362163718,1748045440838,-587.0,0.00027328,2]
[362163720,1748045440847,-500.40744396,0.00027345,2]
[362163722,1748045440856,-500.0,0.00027345,2]
[362163724,1748045440866,-1061.53677406,0.00027349,2]
[362163725,1748045440876,-595.5963346,0.00027383,17]
[362163727,1748045440886,-1085.4390638,0.0002739,2]
[362163729,1748045440896,-180.0,0.00027397,4]
[362163731,1748045440906,-266.086812,0.00027397,4]
[362163733,1748045440915,-707.69,0.00027397,2]
[362163735,1748045440925,-161.18,0.00027397,2]
[362163737,1748045440935,-150.0,0.000274,2]
[362163739,1748045440945,-421.17612736,0.000275,120]
[362163741,1748045440954,-223.23,0.00027538,2]
[362163743,1748045440964,-165.12,0.0002755,2]
[362163745,1748045440974,-212.0,0.00027553,11]
[362163747,1748045440983,-2351.0,0.00027581,2]
[362163749,1748045440993,-1077.0,0.00027807,5]
[362163751,1748045441002,-155.77,0.00027852,2]
[362163753,1748045441011,-2702.4697892,0.00027982,2]
[362163755,1748045441020,-19595.8451633,0.0002799,3]
[362163757,1748045441030,-1072.30619192,0.00027999,15]
[362163759,1748045441039,-65000.65583592,0.00028,2]
[362163761,1748045441048,-595.5963346,0.00028003,18]
[362163763,1748045441058,-19595.8451633,0.00028072,3]
[362163765,1748045441068,-696.94444042,0.00028082,30]
[362163767,1748045441077,-696.94444042,0.00028192,30]
[362163768,1748045441087,-211.0,0.000282,2]
[362163770,1748045441096,-1532.84,0.00028238,2]
[362163772,1748045441106,-696.94444042,0.00028301,30]
[362163774,1748045441115,-375.35562335,0.00028401,3]
[362163781,1748045441175,-85.11796579,0.00028401,3]
[362163783,1748045441187,-1978.10905913,0.00028401,3]
[362163786,1748045441207,-520.039516,0.000247,2]
[362163788,1748045441216,-4712.84940924,0.00028401,3]
[362163969,1748045443199,-250.0,0.00023865,2]
[362163971,1748045443211,-12444.41310579,0.00028401,3]
[362163973,1748045443222,-5871.86754637,0.00028411,2]
[362163975,1748045443232,-696.94444042,0.00028411,30]
[362163977,1748045443242,-9199.999999,0.00028428,2]
[362163979,1748045443251,-1000.0,0.00028475,2]
[362163982,1748045443261,-457.21,0.00028494,120]
[362163985,1748045443271,-696.94444042,0.00028521,30]
[362163987,1748045443280,-595.5963346,0.00028624,19]
[362163989,1748045443290,-696.94444042,0.0002863,30]
[362163991,1748045443299,-1279.6,0.000287,2]
[362163993,1748045443310,-302.96,0.000287,2]
[362163995,1748045443319,-696.94444042,0.0002874,30]
[362163997,1748045443329,-151.0,0.0002874,7]
[362163999,1748045443338,-152.925779,0.0002874,7]
[362164001,1748045443348,-151.0,0.0002874,7]
[362164003,1748045443357,-151.0,0.0002874,7]
[362164005,1748045443366,-2702.46978915,0.00028751,2]
[362164007,1748045443376,-707.69,0.00028767,2]
[362164009,1748045443386,-161.18,0.00028767,2]
[362164011,1748045443396,-164.63829321,0.000288,2]
[362164014,1748045443405,-152.842033,0.00028822,7]
[362164017,1748045443414,-151.0,0.00028822,7]
[362164020,1748045443425,-151.0,0.00028822,7]
[362164023,1748045443434,-151.0,0.00028822,7]
[362164025,1748045443444,-696.94444042,0.00028849,30]
[362164029,1748045443454,-751.97372266,0.000289,2]
[362164031,1748045443463,-223.23,0.00028907,2]
[362164034,1748045443473,-696.94444042,0.00028986,30]
[362164036,1748045443483,-1279.6,0.00029,2]
[362164038,1748045443492,-1279.6,0.00029,2]
[362164040,1748045443502,-302.96,0.00029,2]
[362164042,1748045443512,-302.96,0.00029,2]
[362164045,1748045443523,-154.27,0.00029,2]
[362164046,1748045443532,-766.0,0.00029,2]
[362164048,1748045443542,-211.0,0.0002905,2]
[362164050,1748045443553,-19595.8451633,0.00029076,3]
[362164052,1748045443562,-696.94444042,0.00029096,30]
[362164054,1748045443572,-5263.188,0.00029116,2]
[362164056,1748045443581,-154.0,0.00029116,2]
[362164058,1748045443590,-4052.0,0.00029116,2]
[362164060,1748045443599,-817.947,0.00029116,2]
[362164062,1748045443609,-881.0,0.00029116,2]
[362164064,1748045443618,-155.77,0.00029118,2]
[362164066,1748045443629,-237.0,0.000292,2]
[362164068,1748045443638,-375.0,0.000292,2]
[362164070,1748045443647,-696.94444042,0.00029205,30]
[362164072,1748045443657,-595.5963346,0.00029245,20]
[362164074,1748045443668,-1077.0,0.00029271,5]
[362164076,1748045443677,-1000.0,0.000293,2]
[362164078,1748045443687,-799.0,0.00029301,2]
[362164080,1748045443696,-467.493,0.00029301,2]
[362164082,1748045443706,-554.0,0.00029301,2]
[362164084,1748045443717,-460.472,0.00029301,2]
[362164086,1748045443726,-696.94444042,0.00029315,30]
[362164088,1748045443736,-19595.8451633,0.00029343,3]
[362164090,1748045443750,-500.0,0.00029366,120]
[362164092,1748045443759,-2000.0,0.00029366,120]
[362164094,1748045443770,-2702.46978915,0.00029519,2]
[362164096,1748045443780,-3481.2966478,0.0002953,2]
[362164098,1748045443790,-453.23,0.00029589,2]
[362164100,1748045443799,-19595.8451633,0.0002959,3]
[362164101,1748045443810,-1279.6,0.000296,2]
[362164102,1748045443820,-302.96,0.000296,2]
[362164103,1748045443829,-47727.06012787,0.000296,2]
[362164104,1748045443840,-180.0,0.0002966,2]
[362164105,1748045443849,-293.02355231,0.00029733,2]
[362164106,1748045443859,-1000.0,0.000298,2]
[362164107,1748045443869,-595.5963346,0.00029866,21]
[362164108,1748045443882,-211.0,0.000299,2]
[362164109,1748045443892,-200.0,0.000299,2]
[362164111,1748045443901,-516.47758567,0.0002998,3]
[362164113,1748045443914,-4610.2,0.0002998,3]
[362164305,1748045445901,-3900.65469987,0.0002998,3]
[362164316,1748045445999,-3690.48875578,0.0002998,3]
[362164348,1748045446388,-1975.10018691,0.0002998,3]
[362164350,1748045446400,-1394.88,0.0002998,3]
[362164353,1748045446436,-144.68779136,0.0002998,3]
[362164355,1748045446450,-1069.7,0.0002998,3]
[362164357,1748045446462,-1186.768785,0.0002998,3]
[362164361,1748045446501,-1106.88735871,0.0002998,3]
[362164362,1748045446510,-184.28659479,0.00029999,2]
[362164364,1748045446520,-251.45111123,0.00029999,2]
[362164365,1748045446530,-178.20079241,0.00029999,2]
[362164367,1748045446539,-500.0,0.00029999,2]
[362164368,1748045446549,-480.01898403,0.00029999,2]
[362164370,1748045446558,-9403.99137804,0.0003,40]
[362164872,1748045524742,1000.0,0.00042537,60]
[362164873,1748045525277,218.46097486,0.00042537,60]
[362164874,1748045525383,160.87971806,0.00042537,60]
[362164875,1748045528055,151.0,0.00042537,60]
[362164876,1748045528568,151.0,0.00042537,60]
[362164877,1748045533967,20809.0,0.00042537,60]
[362164880,1748045635524,472.60345619,0.00042537,120]
[362164881,1748045652154,420.0,0.00042537,120]
[362164882,1748045654570,420.0,0.00042537,120]
[362164883,1748045674770,250.0,0.00042537,120]
[362164884,1748045701987,511.02,0.00042537,120]
[362164885,1748045803066,10107.57886,0.00042537,120]
[362164887,1748045829951,199.20597015,0.00042537,120]
[362164888,1748045938406,2181.99044617,0.00013537,2]
[362164889,1748045938428,3618.00955383,0.00013537,2]
[362164890,1748045955730,420.83876955,0.00042544,120]
[362164891,1748045961125,381.99044617,0.00013529,2]
[362164892,1748045961149,5418.00955383,0.00013529,2]
[362164893,1748045983861,3472.40370682,0.0001352,2]
[362164894,1748045983883,2327.59629318,0.0001352,2]
[362164895,1748046006614,5800.0,0.00013512,2]
[362164896,1748046029354,1872.40370682,0.00013503,2]
[362164897,1748046029378,3927.59629318,0.00013503,2]
[362164898,1748046052321,5800.0,0.00013495,2]
[362164900,1748046202165,250.0,0.00015,2]
[362164902,1748046295087,50472.0,0.00042544,60]
[362164905,1748046337124,-225.72567213,0.00019999,2]
[362164906,1748046353078,-74.27432787,0.00019999,2]
[362164907,1748046353102,-242.81527463,0.0002,2]
[362164910,1748046400082,-227.3596764,0.000199,3]
[362164911,1748046426115,-1400.56004144,0.000199,3]
[362164912,1748046496059,22.40370682,0.00013699,2]
[362164913,1748046496081,135.01629318,0.00013699,2]
[362164916,1748046560157,-3133.56988846,0.000199,3]
[362164917,1748046560177,-505.03314306,0.00019973,2]
[362164918,1748046560197,-500.0,0.00019973,2]
[362164919,1748046560217,-4497.08020042,0.0001999,2]
[362164920,1748046560237,-150.0,0.00019999,2]
[362164921,1748046560258,-190.23938867,0.00019999,2]
[362164922,1748046560277,-176.01577786,0.00019999,2]
[362164923,1748046560298,-62711.56906887,0.0002,2]
[362164924,1748046561117,-15507.32665085,0.0002,2]
[362164925,1748046574120,-67577.96056018,0.0002,2]
[362164931,1748046631884,-1200.0,0.00019999,2]
[362164932,1748046631894,-817.2,0.0002,2]
[362164933,1748046631995,-1192.49994515,0.0002,2]
[362164934,1748046632006,-1181.180015,0.0002,2]
[362164935,1748046632017,-11475.90539918,0.0002,2]
[362164936,1748046632028,-25723.9872444,0.0002,2]
[362164937,1748046632051,-157384.36059542,0.0002,2]
[362164938,1748046632063,-85072.2891779,0.0002,2]
[362164939,1748046632072,-2503.30904583,0.00021477,2]
[362164940,1748046632108,-699.4696033,0.00021477,2]
[362164941,1748046632119,-934.33,0.00021477,2]
[362164942,1748046632130,-1767.98424242,0.00021477,2]
[362164943,1748046632142,-2035.55,0.00021477,2]
[362165340,1748046637877,-1042.82955653,0.00021477,2]
[362165341,1748046637889,-788.17999606,0.00021477,2]
[362165342,1748046637985,-8950.77711579,0.00021477,2]
[362165343,1748046637995,-2185.93410909,0.00021577,2]
[362165344,1748046638005,-1680.0,0.00021881,2]
[362165345,1748046638014,-416.91743422,0.000219,6]
[362165346,1748046638024,-500.0,0.00021918,2]
[362165347,1748046638033,-186.01328882,0.00021918,2]
[362165348,1748046638043,-200.0,0.00022,2]
[362165349,1748046638052,-416.91743422,0.00022624,7]
[362165350,1748046638062,-2185.93410903,0.00022934,2]
[362165351,1748046638071,-18722.42955992,0.00022968,2]
[362165352,1748046638081,-1747.76,0.00023111,2]
[362165353,1748046638090,-200.0,0.00023298,2]
[362165354,1748046638099,-416.91743422,0.00023348,9]
[362165355,1748046638109,-653.0979096,0.00023492,2]
[362165356,1748046638118,-2311.54170509,0.00023941,2]
[362165357,1748046638130,-39.45829491,0.00023941,2]
[362165358,1748046638139,-3625.10216475,0.00024,5]
[362165360,1748046638150,-1374.90687437,0.00024,5]
[362165362,1748046638159,-416.91743422,0.00024072,10]
[362165364,1748046638169,-1573.90855883,0.00024256,2]
[362165380,1748046640095,-1134.57144117,0.00024256,2]
[362165381,1748046640104,-1746.62313393,0.0002429,2]
[362165382,1748046640115,-378.925,0.0002429,2]
[362165383,1748046640126,-60.3859751,0.0002429,2]
[362165384,1748046640136,-864.8576249,0.0002446,2]
[362165385,1748046640177,-2430.27644602,0.0002446,2]
[362165386,1748046640188,-1210.37059005,0.0002446,2]
[362165387,1748046640233,-260.39954504,0.0002446,2]
[362165388,1748046640245,-947.72946,0.0002446,2]
[362165390,1748046643062,-3744.64451454,0.0002446,2]
[362165391,1748046643276,-2389.34778732,0.0002446,2]
[362165392,1748046643290,-6874.80359205,0.0002446,2]
[362165393,1748046643299,-416.91743422,0.00024797,11]
[362165394,1748046643308,-76290.207445,0.000248,3]
[362165395,1748046643319,-165.26527779,0.00024807,2]
[362165396,1748046643329,-157.42,0.00024907,2]
[362165398,1748046643339,-1747.76,0.00025375,2]
[362165399,1748046643348,-416.91743422,0.00025521,13]
[362165400,1748046643358,-2185.93410903,0.00025647,2]
[362165401,1748046643367,-18722.42955992,0.00025951,2]
[362165402,1748046643376,-171.15864158,0.00025988,2]
[362165403,1748046643386,-3292.0,0.00026194,2]
[362165405,1748046643396,-416.91743422,0.00026245,14]
[362165407,1748046643404,-514.6246,0.00026595,2]
[362165408,1748046643414,-212.0,0.00026798,2]
[362165409,1748046643423,-631.0,0.0002682,2]
[362165410,1748046643432,-804.0,0.0002682,2]
[362165411,1748046643442,-350.985,0.0002682,2]
[362165412,1748046643451,-1021.459,0.0002682,2]
[362165413,1748046643461,-921.0,0.0002682,2]
[362165414,1748046643470,-436.406,0.0002682,2]
[362165415,1748046643479,-1151.0,0.0002682,2]
[362165416,1748046643488,-154.0,0.0002682,2]
[362165417,1748046643498,-936.0,0.0002682,2]
[362165418,1748046643511,-4052.0,0.0002682,2]
[362165419,1748046643520,-1000.0,0.00026828,2]
[362165420,1748046643529,-204.61,0.00026965,2]
[362165421,1748046643539,-416.91743422,0.00026969,16]
[362165422,1748046643548,-2185.93410903,0.00027003,2]
[362165423,1748046643558,-1587.71696759,0.00027005,2]
[362165425,1748046643567,-200.0,0.00027175,2]